bitfinex-derivatives/quotes_SOLF0:USTF0_20220102
["timestamp","ask_amount","ask_price","bid_price","bid_amount"]
[1641097041743,2.69021993,177.5,177.44,47.658]
[1641097042847,27.66479,177.51,177.44,47.658]
[1641097043347,2.69021993,177.5,177.44,47.658]
[1641097045050,14.68706041,177.5,177.45,1.29710866]
[1641097045757,14.68706041,177.5,177.44,47.658]
[1641097045758,2.69021993,177.5,177.44,47.658]
[1641097050655,30.35500993,177.5,177.44,47.658]
[1641097051057,2.69021993,177.49,177.44,47.658]
[1641097052356,2.69021993,177.5,177.44,47.658]
[1641097052960,11.99684048,177.52,177.44,47.658]
[1641097054965,14.68706041,177.53,177.45,1.29320503]
[1641097056965,11.99684048,177.51,177.45,1.29320503]
[1641097061975,11.99684048,177.52,177.45,1.29320503]
[1641097062176,11.99684048,177.52,177.45,6.82920503]
[1641097062875,12.56625833,177.53,177.45,6.82920503]
[1641097062876,11.99684048,177.51,177.46,1.29320503]
[1641097063979,11.99684048,177.51,177.45,1.29320503]
[1641097064677,11.99684048,177.52,177.45,1.29320503]
[1641097065281,11.99684048,177.52,177.47,3.0]
[1641097065480,11.99684048,177.52,177.45,1.29320503]
[1641097065879,11.99684048,177.52,177.44,47.658]
[1641097066680,11.99684048,177.49,177.44,47.658]
[1641097066882,17.69384048,177.49,177.44,47.658]
[1641097067283,5.697,177.49,177.44,47.658]
[1641097067981,14.68706041,177.48,177.44,47.658]
[1641097068783,14.68706041,177.48,177.39,36.29637191]
[1641097068981,41.8404,177.47,177.39,77.83227191]
[1641097069283,41.8404,177.47,177.4,1.29506626]
[1641097069985,2.69021993,177.46,177.4,1.29506626]
[1641097077194,2.69021993,177.46,177.4,19.41152614]
[1641097079194,11.99684048,177.44,177.37,1.29506626]
[1641097080094,27.66479,177.43,177.37,1.29506626]
[1641097080396,2.69021993,177.42,177.37,1.29506626]
[1641097081497,4.00204979,177.4,177.37,1.29506626]
[1641097081898,4.00204979,177.4,177.36,11.99019223]
[1641097082597,79.55139,177.43,177.36,11.99019223]
[1641097083199,4.00200045,177.4,177.36,11.99019223]
[1641097083799,79.55139,177.43,177.36,11.99019223]
[1641097085002,4.00198538,177.39,177.35,19.41184883]
[1641097085402,79.55139,177.43,177.35,19.41184883]
[1641097086201,4.00198367,177.39,177.35,19.41184883]
[1641097086803,73.20339,177.43,177.35,19.41184883]
[1641097087204,73.20339,177.43,177.35,22.61354436]
[1641097087603,4.00206974,177.39,177.35,22.61354436]
[1641097088405,2.70511454,177.4,177.36,1.29506626]
[1641097089005,4.00208581,177.39,177.35,21.3184781]
[1641097089607,5.003,177.41,177.35,21.3184781]
[1641097089805,2.70512132,177.4,177.36,1.29696158]
[1641097090406,4.00219821,177.39,177.34,60.05686032]
[1641097091006,6.091,177.42,177.34,60.05686032]
[1641097091206,2.70524955,177.41,177.35,1.29694993]
[1641097091907,4.00216645,177.39,177.35,19.41379507]
[1641097092706,73.20339,177.43,177.35,19.41379507]
[1641097092908,2.70525524,177.42,177.35,19.41379507]
[1641097093509,4.00217369,177.4,177.35,19.41379507]
[1641097094307,2.70518907,177.42,177.35,19.41379507]
[1641097094808,4.00213401,177.4,177.36,11.99019223]
[1641097095408,2.70518973,177.42,177.35,19.41379507]
[1641097096008,4.00218,177.39,177.35,19.41379507]
[1641097096612,3.15148,177.39,177.38,8.63158191]
[1641097096810,4.00202003,177.4,177.38,13.81758191]
[1641097097010,4.00202003,177.4,177.39,3.0]
[1641097097216,3.02202003,177.4,177.39,3.0]
[1641097097411,12.00606009,177.44,177.39,3.0]
[1641097097612,31.94148302,177.48,177.43,3.0]
[1641097097812,12.0033194,177.49,177.43,6.066]
[1641097098611,12.0033194,177.49,177.42,6.016]
[1641097100215,12.0033194,177.48,177.42,6.016]
[1641097102118,12.0033194,177.49,177.42,6.016]
[1641097104121,12.0033194,177.49,177.41,66.83729]
[1641097104320,12.0033194,177.5,177.42,18.13022482]
[1641097107227,12.0033194,177.5,177.42,45.79501482]
[1641097108027,12.0033194,177.5,177.42,44.06369769]
[1641097108534,12.0033194,177.51,177.43,18.13119849]
[1641097109630,12.0033194,177.5,177.42,39.66769769]
[1641097110331,12.0033194,177.51,177.42,39.66769769]
[1641097111234,12.0033194,177.51,177.42,42.66769769]
[1641097111435,12.0033194,177.51,177.42,39.66769769]
[1641097112237,12.0033194,177.51,177.43,18.13120828]
[1641097112835,12.0033194,177.5,177.42,39.66769769]
[1641097115038,12.0033194,177.49,177.42,27.66479]
[1641097117139,4.288,177.5,177.42,27.66479]
[1641097117939,4.288,177.5,177.41,39.1725]
[1641097118942,39.5618,177.52,177.41,39.1725]
[1641097119438,39.5618,177.52,177.42,27.66479]
[1641097124751,39.5618,177.52,177.42,39.66769769]
[1641097124948,12.0033194,177.5,177.42,39.66769769]
[1641097125149,18.4603194,177.5,177.42,39.66769769]
[1641097127457,18.4603194,177.5,177.42,12.00290769]
[1641097127954,18.4603194,177.5,177.42,39.66769769]
[1641097130154,12.0033194,177.48,177.42,27.66479]
[1641097134562,12.0033194,177.48,177.41,39.1725]
[1641097136264,12.0033194,177.49,177.41,39.1725]
[1641097136663,12.0033194,177.49,177.42,27.66479]
[1641097136864,12.0033194,177.48,177.42,27.66479]
[1641097137362,20.8743194,177.48,177.39,30.86572357]
[1641097137563,3.0,177.47,177.39,3.20093357]
[1641097137966,15.0033194,177.47,177.39,3.20093357]
[1641097138369,3.0,177.46,177.39,3.20093357]
[1641097138567,3.0,177.46,177.37,12.00290769]
[1641097138769,27.66479,177.45,177.37,12.00290769]
[1641097138969,12.0033194,177.43,177.34,5.63316809]
[1641097139167,18.5063194,177.43,177.34,5.63316809]
[1641097140068,14.7029911,177.42,177.35,1.29591282]
[1641097140770,39.6681094,177.42,177.35,1.29591282]
[1641097141377,2.6996717,177.41,177.35,1.29591282]
[1641097142672,14.7029911,177.41,177.35,1.29591282]
[1641097144074,14.7029911,177.41,177.35,1.282e-05]
[1641097144276,3.0,177.37,177.31,12.00290769]
[1641097144474,4.908,177.37,177.31,12.00290769]
[1641097144774,27.66479,177.35,177.28,12.00290769]
[1641097145775,27.66479,177.35,177.28,18.12369206]
[1641097146381,39.6681094,177.35,177.27,12.00290769]
[1641097146879,27.66479,177.31,177.27,12.00290769]
[1641097147478,39.6681094,177.35,177.27,12.00290769]
[1641097147678,39.6681094,177.35,177.27,18.53290769]
[1641097147879,27.66479,177.35,177.28,12.00290769]
[1641097149082,27.66479,177.35,177.27,6.53]
[1641097149083,39.6681094,177.35,177.27,18.53290769]
[1641097149883,27.66479,177.35,177.27,18.53290769]
[1641097150286,27.66479,177.35,177.28,12.00290769]
[1641097152487,39.6681094,177.35,177.27,12.00290769]
[1641097153087,27.66479,177.32,177.23,27.66479]
[1641097154587,32.29579,177.32,177.23,27.66479]
[1641097154787,4.631,177.32,177.23,27.66479]
[1641097155587,27.66479,177.35,177.23,27.66479]
[1641097155787,27.66479,177.35,177.23,33.89779]
[1641097159091,27.66479,177.32,177.23,33.89779]
[1641097159591,21.25787486,177.32,177.23,33.89779]
[1641097163394,21.25787486,177.32,177.25,3.0]
[1641097163597,27.66479,177.35,177.23,33.89779]
[1641097163795,27.66479,177.35,177.25,3.0]
[1641097163996,27.66479,177.35,177.28,3.0]
[1641097164195,36.5638,177.42,177.29,3.0]
[1641097164394,36.5638,177.42,177.28,8.868]
[1641097164598,36.5638,177.42,177.28,5.868]
[1641097164795,36.5638,177.42,177.28,8.868]
[1641097164997,27.66479,177.39,177.28,33.53279]
[1641097165198,36.6903,177.38,177.28,33.53279]
[1641097166096,48.6936194,177.38,177.34,3.95133388]
[1641097166299,12.0033194,177.38,177.34,3.95133388]
[1641097166997,39.6681094,177.39,177.34,3.95133388]
[1641097167196,12.0033194,177.39,177.34,3.95133388]
[1641097167597,12.0033194,177.37,177.33,3.95133388]
[1641097168497,12.0033194,177.38,177.34,3.95133388]
[1641097172904,27.66479,177.39,177.31,40.76323388]
[1641097174008,27.66479,177.39,177.32,3.95133388]
[1641097177510,75.1361094,177.42,177.32,3.95133388]
[1641097178510,75.1361094,177.42,177.32,9.75433388]
[1641097178911,63.13279,177.42,177.33,3.95133388]
[1641097179510,75.1361094,177.42,177.33,3.95133388]
[1641097180214,63.13279,177.42,177.33,3.95133388]
[1641097180714,75.1361094,177.42,177.33,3.95133388]
[1641097181414,3.98756398,177.38,177.32,3.95133388]
[1641097182316,3.98756398,177.38,177.33,3.95133388]
[1641097183518,12.0033194,177.39,177.35,3.95133388]
[1641097184519,12.0033194,177.38,177.34,10.18233388]
[1641097185219,14.70911935,177.39,177.35,5.24858307]
[1641097185920,12.0033194,177.4,177.36,3.95133388]
[1641097186821,12.0033194,177.39,177.35,5.24858307]
[1641097187523,12.0033194,177.39,177.35,3.95133388]
[1641097188224,12.0033194,177.4,177.35,3.95133388]
[1641097188822,12.0033194,177.4,177.36,3.95133388]
[1641097190527,14.70911935,177.41,177.36,3.95133388]
[1641097191725,14.70911935,177.41,177.36,9.01733388]
[1641097192128,14.70911935,177.41,177.37,3.95133388]
[1641097192825,2.70579995,177.41,177.35,3.95133388]
[1641097195233,14.70911935,177.41,177.35,3.95133388]
[1641097196231,14.70911935,177.41,177.34,3.95133388]
[1641097197836,3.0,177.4,177.34,3.95133388]
[1641097198236,14.70911935,177.41,177.33,3.95133388]
[1641097198437,12.0033194,177.4,177.33,3.95133388]
[1641097199037,3.99523867,177.36,177.33,3.95133388]
[1641097200738,3.99523867,177.35,177.33,3.95133388]
[1641097201451,3.99523867,177.35,177.32,5.24607312]
[1641097202750,2.70579995,177.37,177.34,3.95133388]
[1641097204048,12.0033194,177.38,177.34,3.95133388]
[1641097204348,0.3211194,177.38,177.37,3.0]
[1641097204550,0.3211194,177.4,177.37,61.68158]
[1641097205048,31.94148302,177.44,177.37,61.68158]
[1641097205252,9.87818933,177.46,177.39,3.95133388]
[1641097205953,9.87818933,177.46,177.39,6.95133388]
[1641097206553,9.87818933,177.46,177.44,27.66479]
[1641097206753,9.87818933,177.46,177.44,32.41279]
[1641097206957,9.87818933,177.51,177.44,36.36412388]
[1641097208057,9.87818933,177.51,177.46,3.95133388]
[1641097209059,9.87818933,177.51,177.45,3.95133388]
[1641097212061,15.44218933,177.51,177.45,3.95133388]
[1641097212461,5.564,177.51,177.45,3.95133388]
[1641097213063,5.564,177.51,177.44,3.95133388]
[1641097213263,59.60627302,177.52,177.44,3.95133388]
[1641097213866,9.87818933,177.51,177.44,3.95133388]
[1641097217974,4.00090555,177.45,177.44,3.95133388]
[1641097218471,37.1623,177.5,177.44,3.95133388]
[1641097218673,9.87818933,177.49,177.44,3.95133388]
[1641097220377,9.87818933,177.49,177.43,27.66479]
[1641097220574,9.87818933,177.51,177.45,4.00092296]
[1641097221275,9.87818933,177.51,177.44,4.0010115]
[1641097221878,27.66479,177.52,177.41,5.63078916]
[1641097222779,3.0,177.51,177.4,27.66479]
[1641097222980,12.87468229,177.51,177.44,3.97275834]
[1641097223380,27.66479,177.48,177.44,3.97275834]
[1641097223580,34.10879,177.48,177.44,3.97275834]
[1641097223982,34.10879,177.48,177.41,4.00176258]
[1641097224583,9.87468229,177.47,177.38,37.9625]
[1641097225481,9.87468229,177.47,177.41,4.00186437]
[1641097225983,9.87468229,177.47,177.38,37.9625]
[1641097226581,9.87468229,177.47,177.41,4.00187646]
[1641097227184,9.87468229,177.47,177.4,4.00189601]
[1641097227785,9.87468229,177.47,177.38,37.9625]
[1641097228185,37.53947229,177.47,177.38,37.9625]
[1641097228685,27.66479,177.47,177.4,4.00189898]
[1641097229287,9.87468229,177.46,177.38,37.9625]
[1641097230089,9.87468229,177.46,177.4,4.00191047]
[1641097230589,9.87468229,177.46,177.41,4.00181909]
[1641097231289,9.87468229,177.46,177.39,27.66479]
[1641097231793,9.87468229,177.46,177.41,4.0018298]
[1641097233192,9.87468229,177.46,177.39,27.66479]
[1641097233393,9.87468229,177.46,177.4,4.00191242]
[1641097233893,9.87468229,177.46,177.41,4.00165491]
[1641097234193,9.87468229,177.46,177.39,27.66479]
[1641097235095,12.00493713,177.45,177.41,4.00164571]
[1641097235696,9.87468229,177.46,177.4,4.678]
[1641097235898,12.00440565,177.46,177.42,4.00146855]
[1641097236899,9.87468229,177.48,177.4,4.678]
[1641097237401,12.00458638,177.46,177.42,4.00152879]
[1641097238201,12.00458638,177.46,177.4,4.678]
[1641097238700,12.00458638,177.46,177.42,4.00153982]
[1641097239099,12.00458638,177.46,177.4,4.678]
[1641097240004,12.00458638,177.46,177.42,4.00158999]
[1641097240503,12.00458638,177.46,177.4,4.678]
[1641097240704,12.00458638,177.46,177.41,5.63063063]
[1641097240903,12.00458638,177.46,177.42,27.66479]
[1641097241705,9.87468229,177.48,177.42,27.66479]
[1641097241904,9.87468229,177.48,177.42,31.66626121]
[1641097242306,12.00137811,177.48,177.43,4.00045937]
[1641097243409,12.00137811,177.48,177.42,27.66479]
[1641097243911,12.00137811,177.48,177.44,4.00042423]
[1641097244610,12.00137811,177.48,177.42,63.24619]
[1641097244809,14.70370649,177.48,177.43,1.29805815]
[1641097245315,38.3311,177.49,177.44,4.00038985]
[1641097245711,14.70349074,177.48,177.43,1.29805809]
[1641097246112,14.70349074,177.48,177.43,28.96284809]
[1641097246512,38.3311,177.49,177.43,27.66479]
[1641097246713,38.3311,177.49,177.44,4.0003815]
[1641097247213,14.70330699,177.48,177.44,1.29806257]
[1641097247916,12.00102717,177.48,177.44,1.29806257]
[1641097248116,38.3311,177.49,177.44,4.0003846]
[1641097248822,14.70366339,177.48,177.43,27.66479]
[1641097249421,14.70366339,177.48,177.44,5.29846511]
[1641097250524,12.00128795,177.47,177.43,5.29853783]
[1641097251122,12.00128795,177.47,177.42,35.5814]
[1641097252423,12.57588136,177.48,177.42,35.5814]
[1641097252622,12.57588136,177.48,177.43,5.29953687]
[1641097252922,12.00366697,177.47,177.42,35.5814]
[1641097253525,12.00366697,177.47,177.43,27.66479]
[1641097254024,12.57588136,177.48,177.43,5.29954]
[1641097254522,14.70593456,177.48,177.42,35.5814]
[1641097255122,14.70593456,177.48,177.43,5.29950774]
[1641097255823,14.70593456,177.48,177.42,35.5814]
[1641097256432,14.70593456,177.48,177.43,5.2995097]
[1641097256827,14.70593456,177.48,177.43,32.9642997]
[1641097257031,14.70593456,177.48,177.42,35.5814]
[1641097257729,12.00355912,177.47,177.43,5.2996774]
[1641097258629,12.00355912,177.47,177.42,35.5814]
[1641097259232,12.00355912,177.47,177.43,5.29968134]
[1641097260236,12.00355912,177.47,177.42,35.5814]
[1641097261132,12.00355912,177.46,177.42,39.5829796]
[1641097261633,12.00355912,177.46,177.41,5.63063063]
[1641097262535,39.66834912,177.46,177.41,5.63063063]
[1641097262935,44.04334912,177.46,177.42,5.29994496]
[1641097263634,2.70237544,177.45,177.41,9.63231417]
[1641097264436,44.04334912,177.46,177.41,5.63063063]
[1641097264635,12.00355912,177.46,177.41,5.63063063]
[1641097265234,12.00355912,177.47,177.43,4.00136718]
[1641097265636,12.00355912,177.47,177.43,8.59436718]
[1641097266039,12.00355912,177.47,177.43,4.593]
[1641097266839,12.00355912,177.47,177.43,8.59431807]
[1641097267239,12.00355912,177.47,177.43,4.593]
[1641097268041,12.00355912,177.47,177.43,8.5943311]
[1641097268644,12.00355912,177.47,177.43,4.593]
[1641097269546,12.00355912,177.47,177.43,8.59279546]
[1641097270147,12.00355912,177.47,177.43,4.593]
[1641097270749,12.00355912,177.47,177.42,3.9998271]
[1641097271049,12.00355912,177.47,177.41,5.63063063]
[1641097271450,12.00355912,177.47,177.42,3.99983941]
[1641097271650,3.99983941,177.43,177.42,5.29765354]
[1641097273250,3.99983941,177.43,177.42,1.29781413]
[1641097275753,12.57881539,177.48,177.42,1.29781413]
[1641097275754,3.99983941,177.44,177.42,1.29781413]
[1641097281863,12.00355912,177.47,177.43,4.00130064]
[1641097284064,14.70662383,177.48,177.43,4.00130064]
[1641097286063,14.70662383,177.48,177.44,31.66609064]
[1641097287164,14.70662383,177.48,177.44,4.00130064]
[1641097287366,12.00355912,177.47,177.43,4.00130064]
[1641097287967,14.70662383,177.48,177.44,4.00130064]
[1641097288667,14.70662383,177.48,177.44,31.66609064]
[1641097289068,14.70662383,177.48,177.44,27.66479]
[1641097289268,14.70662383,177.48,177.43,4.00130064]
[1641097291472,14.70662383,177.48,177.44,27.66479]
[1641097291973,14.70662383,177.48,177.43,4.00130064]
[1641097293778,14.70662383,177.48,177.44,27.66479]
[1641097294478,14.70662383,177.48,177.43,4.00130064]
[1641097296783,14.70662383,177.48,177.44,27.66479]
[1641097297083,14.70662383,177.48,177.44,33.97979]
[1641097297587,14.70662383,177.48,177.44,6.315]
[1641097298787,14.70662383,177.48,177.44,31.66609064]
[1641097299386,14.70662383,177.48,177.44,27.66479]
[1641097300487,14.70662383,177.48,177.44,31.66609064]
[1641097300886,14.70662383,177.48,177.44,4.00130064]
[1641097301388,14.70662383,177.48,177.44,31.66609064]
[1641097302887,14.70662383,177.48,177.44,4.00130064]
[1641097303388,14.70662383,177.48,177.44,31.66609064]
[1641097304292,14.70662383,177.48,177.44,4.00130064]
[1641097305493,14.70662383,177.48,177.46,27.66479]
[1641097306296,2.70306471,177.48,177.46,27.66479]
[1641097308293,2.70306471,177.48,177.45,4.00130064]
[1641097308493,9.10206471,177.48,177.45,4.00130064]
[1641097308996,2.70306471,177.47,177.43,4.00105528]
[1641097309197,3.0,177.46,177.39,12.00493713]
[1641097309595,27.66479,177.44,177.39,12.00493713]
[1641097309896,31.94379,177.44,177.39,12.00493713]
[1641097310095,12.00355912,177.43,177.38,1.29770528]
[1641097310996,12.00355912,177.42,177.38,1.29770528]
[1641097311595,14.70662383,177.43,177.38,1.29770528]
[1641097312699,12.00355912,177.42,177.38,1.29770528]
[1641097317704,27.66479,177.42,177.38,1.29770528]
[1641097318511,2.70306471,177.41,177.38,1.29770528]
[1641097320113,2.70306471,177.44,177.38,1.29770528]
[1641097320313,2.70306471,177.44,177.38,7.67970528]
[1641097320714,2.70306471,177.44,177.39,12.00493713]
[1641097321421,12.00355912,177.47,177.39,12.00493713]
[1641097321615,43.86825912,177.48,177.4,12.00493713]
[1641097322219,12.00355912,177.46,177.4,1.29770528]
[1641097323021,14.70730231,177.47,177.4,1.29770528]
[1641097323417,12.00355912,177.46,177.4,1.29770528]
[1641097324722,12.00355912,177.45,177.39,1.29770528]
[1641097326220,12.00355912,177.44,177.39,1.29770528]
[1641097327522,12.00355912,177.45,177.39,1.29770528]
[1641097329328,12.00355912,177.43,177.39,1.29770528]
[1641097332235,12.58139486,177.44,177.38,6.382]
[1641097332432,12.58139486,177.44,177.37,34.76579908]
[1641097332735,14.70954006,177.44,177.39,1.29774581]
[1641097333036,14.70954006,177.44,177.39,6.88774581]
[1641097333434,14.70954006,177.44,177.4,1.29774675]
[1641097333435,12.00579687,177.44,177.4,1.29774675]
[1641097334036,12.00579687,177.44,177.39,5.59]
[1641097334840,12.00579687,177.44,177.4,1.29776094]
[1641097334841,2.70374319,177.44,177.4,1.29776094]
[1641097335440,27.66479,177.45,177.39,5.59]
[1641097335939,2.69575285,177.44,177.39,5.59]
[1641097336143,2.69575285,177.44,177.37,29.1339]
[1641097336839,12.00579687,177.47,177.37,29.1339]
[1641097337041,43.87049687,177.48,177.38,1.29422146]
[1641097337241,43.87049687,177.48,177.38,4.29422146]
[1641097337843,2.69482687,177.47,177.42,27.66479]
[1641097338142,2.69482687,177.47,177.42,32.52079]
[1641097339042,14.70062374,177.47,177.43,1.29821659]
[1641097344258,12.00579687,177.46,177.42,27.66479]
[1641097345059,14.70062374,177.47,177.42,27.66479]
[1641097347359,12.00579687,177.46,177.42,27.66479]
[1641097347862,12.00579687,177.46,177.38,20.38493713]
[1641097348461,12.00579687,177.46,177.4,27.66479]
[1641097348961,12.00579687,177.46,177.41,1.29821076]
[1641097349664,12.00579687,177.46,177.39,1.29821076]
[1641097350469,12.00579687,177.46,177.41,27.66479]
[1641097351268,14.70062374,177.47,177.42,1.29821076]
[1641097351468,3.0,177.44,177.42,1.29821076]
[1641097351867,2.69482687,177.43,177.37,12.00493713]
[1641097352467,12.00579687,177.43,177.36,1.29812959]
[1641097353071,12.00579687,177.42,177.36,1.29812959]
[1641097355485,14.70062374,177.43,177.36,1.29812959]
[1641097356678,2.69482687,177.43,177.36,1.29812959]
[1641097357077,27.66479,177.42,177.36,1.29812959]
[1641097357878,2.69482687,177.41,177.36,1.29812959]
[1641097360585,7.24782687,177.41,177.36,1.29812959]
[1641097361487,4.553,177.41,177.36,1.29812959]
[1641097361784,27.66479,177.42,177.36,1.29812959]
[1641097362887,2.70007503,177.41,177.36,1.29812959]
[1641097367592,14.7058719,177.41,177.36,1.29812959]
[1641097368393,2.70007503,177.41,177.36,1.29812959]
[1641097369694,4.00248657,177.38,177.37,4.00248657]
[1641097370995,4.00248657,177.38,177.36,1.29812959]
[1641097373898,7.00248657,177.38,177.36,1.29812959]
[1641097374499,5.70007503,177.39,177.36,1.29812959]
[1641097374701,2.70007503,177.37,177.35,4.00311293]
[1641097375699,4.00299732,177.36,177.35,4.00311293]
[1641097376102,14.7058719,177.39,177.35,4.00311293]
[1641097377300,4.00302425,177.36,177.35,4.00311293]
[1641097377902,2.70007503,177.38,177.35,4.00311293]
[1641097378701,2.70007503,177.38,177.35,10.40211293]
[1641097379103,14.7058719,177.39,177.35,10.40211293]
[1641097379705,4.00242278,177.38,177.37,4.00311293]
[1641097380907,4.00242278,177.38,177.34,12.00493713]
[1641097381609,2.70007503,177.39,177.37,4.00247467]
[1641097382210,31.5628,177.4,177.37,4.00247467]
[1641097382411,27.66479,177.42,177.36,4.00247467]
[1641097382609,57.11829,177.42,177.36,4.00247467]
[1641097382910,2.70034418,177.41,177.36,4.00247467]
[1641097383611,2.70034418,177.41,177.37,4.00247467]
[1641097385212,2.70034418,177.41,177.37,5.30060426]
[1641097385812,2.70034418,177.41,177.37,4.00247467]
[1641097386714,2.70034418,177.41,177.36,1.29812959]
[1641097386715,2.70034418,177.41,177.38,4.00247467]
[1641097388318,2.70034418,177.41,177.38,9.14847467]
[1641097389520,2.70034418,177.41,177.38,4.00247467]
[1641097394221,8.84334418,177.41,177.38,4.00247467]
[1641097394820,2.70034418,177.4,177.37,4.00247467]
[1641097395520,14.70614105,177.41,177.36,4.00247467]
[1641097397324,14.70614105,177.41,177.34,32.52179]
[1641097397519,3.99933224,177.39,177.37,3.99933224]
[1641097398121,29.4535,177.42,177.38,3.99924366]
[1641097398620,3.99929544,177.39,177.35,1.29713378]
[1641097399827,29.4535,177.42,177.35,1.29713378]
[1641097400022,29.4535,177.42,177.38,3.99925098]
[1641097400424,29.4535,177.42,177.36,30.0476]
[1641097400723,3.99919195,177.39,177.37,27.66479]
[1641097401122,29.4535,177.42,177.38,5.29630077]
[1641097401723,3.99913722,177.39,177.37,27.66479]
[1641097402723,2.7019928,177.41,177.37,27.66479]
[1641097402922,29.4535,177.42,177.38,5.29628566]
[1641097403325,3.99914892,177.39,177.37,27.66479]
[1641097404124,29.4535,177.42,177.38,5.29629322]
[1641097404923,29.4535,177.42,177.37,27.66479]
[1641097405126,3.99916777,177.39,177.37,27.66479]
[1641097405624,29.4535,177.42,177.38,5.29631492]
[1641097406324,3.99915791,177.39,177.37,27.66479]
[1641097406725,29.4535,177.42,177.37,27.66479]
[1641097406925,29.4535,177.42,177.38,5.29630246]
[1641097407426,3.99920595,177.39,177.37,27.66479]
[1641097407929,29.4535,177.42,177.38,5.29631063]
[1641097408528,29.4535,177.42,177.35,30.8171]
[1641097408826,3.99917337,177.4,177.39,3.99917337]
[1641097409327,27.66479,177.42,177.39,3.99917337]
[1641097409525,27.66479,177.42,177.38,3.99922762]
[1641097409926,27.66479,177.42,177.35,30.8171]
[1641097410126,27.66479,177.42,177.39,3.99918005]
[1641097410127,3.99918005,177.4,177.39,3.99918005]
[1641097410726,27.66479,177.42,177.36,1.29714031]
[1641097411228,3.99925667,177.39,177.38,3.99925667]
[1641097411828,27.66479,177.42,177.35,42.82203713]
[1641097412830,27.66479,177.42,177.39,4.00228145]
[1641097413032,2.70417039,177.41,177.39,4.00228145]
[1641097413530,27.66479,177.42,177.35,42.82203713]
[1641097414231,2.70416284,177.41,177.39,4.00227459]
[1641097414833,27.66479,177.42,177.35,42.82203713]
[1641097415733,27.66479,177.42,177.38,4.00227035]
[1641097415933,2.70415817,177.41,177.38,4.00227035]
[1641097416531,11.99752011,177.43,177.35,30.8171]
[1641097416932,2.69828452,177.44,177.38,3.99363865]
[1641097417133,2.69828452,177.44,177.38,8.39463865]
[1641097417634,2.69828452,177.44,177.38,4.401]
[1641097418433,2.69828452,177.44,177.38,8.3945734]
[1641097418931,27.66479,177.42,177.38,4.401]
[1641097419133,27.66479,177.42,177.35,34.01892382]
[1641097419532,2.69828452,177.41,177.37,3.99367834]
[1641097421036,11.99752011,177.44,177.35,34.01892382]
[1641097421433,11.99752011,177.44,177.35,30.8171]
[1641097421834,2.6982329,177.44,177.38,3.99359171]
[1641097422033,2.6982329,177.44,177.38,9.11759171]
[1641097422234,2.6982329,177.44,177.38,5.124]
[1641097422833,27.66479,177.43,177.38,9.11759001]
[1641097423434,27.66479,177.43,177.38,5.124]
[1641097423435,2.6982329,177.42,177.38,5.124]
[1641097424238,27.66479,177.43,177.38,5.124]
[1641097424437,27.66479,177.43,177.35,30.8171]
[1641097424836,2.70401253,177.42,177.39,4.00213794]
[1641097425437,39.66231011,177.43,177.35,42.82203713]
[1641097426438,2.70400585,177.42,177.39,4.00213188]
[1641097427041,39.66231011,177.43,177.35,42.82203713]
[1641097427541,2.70398997,177.42,177.39,4.00211744]
[1641097428642,11.99752011,177.43,177.35,42.82203713]
[1641097429247,11.99752011,177.43,177.39,4.00211877]
[1641097429548,11.99752011,177.43,177.35,51.26203713]
[1641097429747,20.94551155,177.43,177.35,51.26203713]
[1641097430345,2.70399144,177.42,177.39,4.00212181]
[1641097430845,18.24152011,177.43,177.35,51.26203713]
[1641097431348,18.24152011,177.43,177.35,54.26203713]
[1641097431548,18.24152011,177.43,177.35,51.26203713]
[1641097431748,18.24152011,177.43,177.35,54.26203713]
[1641097431950,2.70398975,177.42,177.39,4.00211723]
[1641097432352,2.70398975,177.42,177.36,1.29812749]
[1641097432353,12.00633012,177.43,177.36,4.29812749]
[1641097432654,12.00633012,177.43,177.36,1.29812749]
[1641097433356,27.66479,177.44,177.36,1.29812749]
[1641097433556,2.70382161,177.43,177.4,4.00196439]
[1641097434158,14.70963705,177.44,177.38,1.29814984]
[1641097434665,30.4546,177.45,177.37,6.449]
[1641097434865,30.4546,177.45,177.4,4.00189917]
[1641097435463,14.70967677,177.44,177.36,19.43277115]
[1641097436064,14.70967677,177.44,177.4,4.00192311]
[1641097436669,30.4546,177.45,177.36,19.43277115]
[1641097437171,14.70954557,177.44,177.4,4.00192312]
[1641097438369,30.4546,177.45,177.39,3.99762608]
[1641097438868,14.69400933,177.44,177.36,1.2981437]
[1641097439868,14.69400933,177.44,177.36,4.2981437]
[1641097440070,14.69400933,177.44,177.36,1.2981437]
[1641097440470,14.69400933,177.44,177.38,3.99770171]
[1641097440871,14.69400933,177.44,177.36,1.2981437]
[1641097441070,11.99304576,177.43,177.37,3.99791756]